Cogmind - Beta 11 X5 @@@ ROGUE MODE // 2021.07.17 @ 12:45:26 Player: Stryker Result: Self-destructed Performance ------------- Evolutions (6) 3000 Regions Visited (23) 4600 Robots Destroyed (246) 1230 Value Destroyed (7740) 7740 Prototype IDs (38) 760 Alien Tech Used (0) 0 Bonus (1883) 1883 TOTAL SCORE: 19213 Bonus ------- High Alert Combat Kills 495 Follower Combat Kills 1486 Network Hubs Disabled 200 Met Data Miner 300 Met Warlord at Base 500 MAIN.C Attacked Warlord 500 Warlord Defense Kill 100 Built Enhanced Grunts 300 A7 Reached Mainframe 300 Friendly Fire -2298 Cogmind --------- Core Integrity 1120/1150 Matter 300/300 Energy 700/700 System Corruption 4% Temperature Hot (242) Movement Immobile (Siege) Location -4/Waste Parts ------- > --- POWER (2) -------- Vortex Chain Reactor > --- PROPULSION (4) --- Centrium Heavy Treads Centrium Heavy Treads > --- UTILITY (10) ----- Advanced Cooling System High-capacity Storage Unit Advanced Signal Interpreter Improved Hacking Suite Improved Hacking Suite Improved System Shield > --- WEAPON (3) ------- Heavy Phase Cannon Enhanced Gauss Cannon > --- INVENTORY (20) --- Antimatter Reactor Centrium Heavy Treads Centrium Heavy Treads Structural Scanner Experimental Sensor Array Experimental Sensor Array Makeshift Transmission Jammer Centrium Medium Armor Plating Advanced Focal Shield Thermal Barrier EM Shield Improved Energy Mantle Phase Gun Advanced Plasma Cannon Improved KE Penetrator Heavy Gauss Cannon Plasma Lance Peak State ------------ > --- POWER ------------ Vortex Chain Reactor > --- PROPULSION ------- Centrium Heavy Treads Centrium Heavy Treads > --- UTILITY ---------- Advanced Cooling System High-capacity Storage Unit Experimental Sensor Array Advanced Signal Interpreter Light Regenerative Plating Light Regenerative Plating Medium Regenerative Plating Improved Hacking Suite Improved Hacking Suite Improved System Shield > --- WEAPON ----------- Heavy Phase Cannon Heavy Flak Cannon Enhanced Gauss Cannon > --- INVENTORY -------- Antimatter Reactor Centrium Heavy Treads Centrium Heavy Treads Experimental Matter Compressor Structural Scanner Experimental Sensor Array Makeshift Transmission Jammer Centrium Medium Armor Plating Centrium Medium Armor Plating Advanced Focal Shield Thermal Barrier EM Shield Improved Energy Mantle Phase Gun Advanced Plasma Cannon Improved KE Penetrator Heavy Gauss Cannon Plasma Lance [Rating: 143] Favorites ----------- Power Micro Fission Core Engine Improved Deuterium Engine Power Core Micro Fission Core Reactor Vortex Chain Reactor Propulsion Light Treads Treads Light Treads Leg Aluminum Leg Wheel Armored Wheel Utility Improved Hacking Suite Device Experimental Sensor Array Storage High-capacity Storage Unit Processor Improved Signal Interpreter Hackware Improved Hacking Suite Protection Light Regenerative Plating Weapon Heavy Flak Cannon Energy Gun Improved Medium Laser Energy Cannon Heavy Phase Cannon Ballistic Gun KE Penetrator Ballistic Cannon Heavy Flak Cannon Launcher Rocket Launcher Slashing Weapon Chainsword Piercing Weapon Lance Build | -11 -10 -10 -9 -9 -9 -8 -8 -7 -7 -7 -6 -6 -6 -6 -6 -6 -5 -5 -5 -5 -4 -4 -4 ------- Run | Scr Mat Min Mat Min Exi Min Mat Fac Low Dat Pro Fac Ext Cet Arc Hub Fac Upp Upp War Pro Fac Was Slots Evolved 12 | . . . 2 . . . 2 2 . . . 2 . . . . 2 . . . . 2 . Power 1 | . . . . . . . . . . . . . . . . . . . . . . 1 . Propulsion 2 | . . . 1 . . . 1 . . . . . . . . . . . . . . . . Utility 8 | . . . 1 . . . 1 2 . . . 2 . . . . 1 . . . . 1 . Weapon 1 | . . . . . . . . . . . . . . . . . 1 . . . . . . Parts Attached 393 | . 14 3 31 3 2 . 49 49 5 1 10 33 34 10 11 27 61 20 3 10 6 9 2 Power 20 | . 1 . 2 . . . 3 2 . . . 1 2 1 2 . 2 . . 3 . 1 . Engine 10 | . 1 . 2 . . . 3 2 . . . 1 . . 1 . . . . . . . . Core 8 | . . . . . . . . . . . . . 2 . 1 . 2 . . 3 . . . Reactor 2 | . . . . . . . . . . . . . . 1 . . . . . . . 1 . Propulsion 65 | . 5 . 6 . . . 20 8 2 . 1 2 7 3 1 1 9 . . . . . . Treads 54 | . 2 . 5 . . . 17 5 2 . . 2 7 3 1 1 9 . . . . . . Leg . | . . . . . . . . . . . . . . . . . . . . . . . . Wheel 11 | . 3 . 1 . . . 3 3 . . 1 . . . . . . . . . . . . Hover . | . . . . . . . . . . . . . . . . . . . . . . . . Flight . | . . . . . . . . . . . . . . . . . . . . . . . . Utility 216 | . 3 . 17 2 2 . 18 30 3 1 5 21 18 4 6 17 34 14 1 4 6 8 2 Device 146 | . 1 . 11 2 . . 10 23 2 . 4 11 17 1 3 13 23 10 1 2 5 6 1 Storage 8 | . 1 . . . 2 . . . 1 . . 1 . 1 . . . . . 1 . 1 . Processor 4 | . . . . . . . . 3 . . . . . . . . 1 . . . . . . Hackware 8 | . . . . . . . . . . . . 3 . . 3 . 2 . . . . . . Protection 50 | . 1 . 6 . . . 8 4 . 1 1 6 1 2 . 4 8 4 . 1 1 1 1 Artifact . | . . . . . . . . . . . . . . . . . . . . . . . . Weapon 92 | . 5 3 6 1 . . 8 9 . . 4 9 7 2 2 9 16 6 2 3 . . . Energy Gun 9 | . 1 1 1 . . . 1 . . . . 2 2 . 1 . . . . . . . . Energy Cannon 9 | . . . . . . . 1 1 . . . 1 2 1 . . 1 1 1 . . . . Ballistic Gun 26 | . 2 1 3 . . . 5 3 . . 2 . . . . 5 4 1 . . . . . Ballistic Cannon 16 | . 2 . . . . . . 1 . . . 2 2 . . 1 4 2 . 2 . . . Launcher 6 | . . 1 1 1 . . . . . . 1 . 1 1 . . . . . . . . . Special Weapon . | . . . . . . . . . . . . . . . . . . . . . . . . Impact Weapon . | . . . . . . . . . . . . . . . . . . . . . . . . Slashing Weapon 21 | . . . 1 . . . 1 4 . . 1 4 . . 1 3 6 . . . . . . Piercing Weapon 5 | . . . . . . . . . . . . . . . . . 1 2 1 1 . . . Special Melee Weapon . | . . . . . . . . . . . . . . . . . . . . . . . . Unidentified Prototypes 16 | . 1 . . 1 . . 1 . . . . . . 5 . 1 1 . . 4 . 2 . Corrupted Parts 2 | . . . . . . . . . . . . . . . . 2 . . . . . . . System Corruption 8 | . . . . . . . . . . . . . . . . 8 . . . . . . . Parts Lost 22 | . 1 . 2 . . . 2 3 3 . . 1 4 2 . . 1 . . . 1 1 1 Power 3 | . . . . . . . . 1 . . . 1 1 . . . . . . . . . . Propulsion 6 | . . . 1 . . . . . 2 . . . 2 1 . . . . . . . . . Utility 8 | . . . . . . . 1 2 1 . . . . . . . 1 . . . 1 1 1 Weapon 5 | . 1 . 1 . . . 1 . . . . . 1 1 . . . . . . . . . Highest Loss Streak 5 | . 1 . 1 . . . 1 2 5 . . 1 1 2 . . 1 . . . 1 1 1 Average Slot Usage (%) 93 | . 98 100 99 100 100 100 100 96 92 92 87 86 97 94 93 92 93 88 88 87 87 84 84 Engine 5 | . 14 14 11 11 11 11 9 7 7 7 7 6 1 . 1 . . . . . . . . Core 2 | . . . . . . . . . . . . . 4 5 . 6 5 5 5 5 5 . . Treads 14 | . 7 14 22 22 22 22 18 15 15 15 6 1 20 21 20 19 16 11 11 11 11 10 10 Wheel 6 | . 9 14 11 11 11 11 18 11 7 7 11 12 2 . . . . . . . . . . Device 10 | . 7 14 11 11 11 11 10 14 14 14 14 10 7 5 7 9 9 9 10 10 10 10 8 Storage 7 | . 14 14 11 11 11 11 9 7 14 15 15 6 6 6 6 6 5 5 5 5 5 5 5 Processor 4 | . . . . . . . . 11 15 15 15 11 6 6 6 6 5 5 5 5 5 5 5 Hackware 11 | . . . . . . . . . . . . 19 20 20 20 20 22 23 23 23 19 15 15 Protection 8 | . 4 . 10 11 11 11 16 10 . . . 3 11 13 11 9 7 6 5 5 9 15 17 Energy Gun 3 | . 7 3 11 11 11 11 4 . . . . 3 7 . 1 . . . . . . . . Energy Cannon 3 | . . . . . . . 5 7 7 7 2 . 1 12 6 6 4 . 1 5 5 5 5 Ballistic Gun 4 | . 6 14 10 6 . . 7 2 . . 4 3 . . . 3 6 10 9 1 . . . Ballistic Cannon 3 | . 13 3 . . . . . . 7 7 1 . 3 . . . . 3 5 9 11 10 10 Slashing Weapon 1 | . . . . . . . . 3 . . 1 3 . . 3 2 3 . . . . . . Naked Turns . | . . . . . . . . . . . . . . . . . . . . . . . . Heaviest Build 121 | 14 33 36 43 38 58 58 71 75 70 74 70 71 76 88 82 72 82 80 78 108 95 121 120 Greatest Support 160 | 20 20 12 12 12 12 12 40 28 28 28 56 56 90 130 133 133 160 160 160 160 160 160 160 Greatest Overweight (x) 4 | . 3 2 3 3 4 4 3 2 2 2 2 2 2 1 . . . . . . . . . Average Overweight (x) 1 | . 1 2 2 3 3 4 2 2 2 2 1 1 . . . . . . . . . . . Largest Inventory Capacity 20 | 8 15 15 15 15 20 20 20 20 20 20 20 20 20 20 20 20 20 20 20 20 20 20 20 Average Capacity 18 | 8 14 15 15 15 15 20 20 20 20 20 20 20 20 20 20 20 20 20 20 20 20 20 20 Most Carried 20 | 7 15 15 15 15 16 16 20 20 18 16 17 20 20 20 20 20 20 20 20 20 20 20 20 Average Carried 18 | 6 13 15 14 14 15 16 19 19 15 16 16 19 19 19 19 19 19 19 20 19 19 19 19 Final Capacity 20 | 8 15 15 15 15 20 20 20 20 20 20 20 20 20 20 20 20 20 20 20 20 20 20 20 Final Carried 20 | 7 15 15 15 15 16 16 20 18 16 16 16 19 20 20 20 20 20 20 20 20 20 20 19 Class Distribution -------------------- 25% | Mutant 22% | Hacker-Mutant 14% | Hacker-Skirmisher 12% | Scavenger-Mutant 9% | Hacker-Assassin 5% | Assassin 5% | Skirmisher Dominant Class ---------------- Mutant | -10/Materials Mutant | -10/Mines Mutant | -9/Materials Mutant | -9/Mines Mutant | -9/Exiles Mutant | -8/Mines Scavenger-Mutant | -8/Materials Assassin | -7/Factory Skirmisher | -7/Lower Caves Skirmisher | -7/Data Miner Mutant | -6/Proximity Caves Hacker-Assassin | -6/Factory Hacker-Mutant | -6/Extension Scavenger-Mutant | -6/Cetus Scavenger-Mutant | -6/Archives Scavenger-Assassin | -6/Hub_04(d) Hacker-Assassin | -5/Factory Hacker-Skirmisher | -5/Upper Caves Hacker-Skirmisher | -5/Upper Caves Hacker-Mutant | -5/Warlord Hacker-Skirmisher | -4/Proximity Caves Hacker-Mutant | -4/Factory Hacker-Mutant | -4/Waste Resources | -11 -10 -10 -9 -9 -9 -8 -8 -7 -7 -7 -6 -6 -6 -6 -6 -6 -5 -5 -5 -5 -4 -4 -4 ----------- Run | Scr Mat Min Mat Min Exi Min Mat Fac Low Dat Pro Fac Ext Cet Arc Hub Fac Upp Upp War Pro Fac Was Matter Collected 7606 | 200 492 68 724 61 . . 852 599 115 . 1 360 784 176 100 251 961 693 70 634 177 43 245 Remotely . | . . . . . . . . . . . . . . . . . . . . . . . . Salvage Created 9380 | 115 504 45 1571 29 . . 1979 919 152 . 54 427 863 323 236 454 1028 467 . 56 76 82 . Parts 520 | 5 33 10 100 3 . . 119 43 2 . 4 20 32 15 15 27 53 22 . 1 9 7 . Haulers Intercepted 14 | . 2 . 6 . . . 5 1 . . . . . . . . . . . . . . . Recyclers Shooed 3 | . . . 1 . . . . . . . . 1 1 . . . . . . . . . . Parts Field Recycled . | . . . . . . . . . . . . . . . . . . . . . . . . Retrieved Matter . | . . . . . . . . . . . . . . . . . . . . . . . . Parts Self-Destructed 127 | . . . . . . . . . 1 . 1 . . . . . . 19 1 93 12 . . Prevented 4 | . . . . . . . . . . . 1 . . . . . . . 1 2 . . . Kills | -11 -10 -10 -9 -9 -9 -8 -8 -7 -7 -7 -6 -6 -6 -6 -6 -6 -5 -5 -5 -5 -4 -4 -4 ------- Run | Scr Mat Min Mat Min Exi Min Mat Fac Low Dat Pro Fac Ext Cet Arc Hub Fac Upp Upp War Pro Fac Was Combat Hostiles Destroyed 167 | . 9 4 30 3 . . 34 13 4 . 4 9 14 5 2 5 13 11 . 1 4 2 . Melee 1 | . . . . . . . . 1 . . . . . . . . . . . . . . . Guns 89 | . 5 1 28 1 . . 18 2 . . . 7 7 . 1 2 10 7 . . . . . Cannons 54 | . 4 . . . . . 15 8 4 . . 2 5 . 1 2 2 4 . 1 4 2 . AOE 19 | . . 3 2 2 . . . 2 . . 4 . 2 4 . . . . . . . . . Classes Destroyed 17 | 2 6 . 4 . . . 1 2 . . . . 1 . . . . 1 . . . . . Worker 15 | . 3 . 1 . . . 2 1 . . . 3 . . . 2 3 . . . . . . Builder 10 | . . . 3 . . . . 2 . . . 1 1 . . 3 . . . . . . . Tunneler 3 | 1 . . . . . . 1 . . . . . . . . . 1 . . . . . . Hauler 14 | . 2 . 6 . . . 5 1 . . . . . . . . . . . . . . . Recycler 10 | 1 1 . 1 . . . . 2 . . . . 2 . . . 3 . . . . . . Mechanic 3 | . . . 1 . . . 1 1 . . . . . . . . . . . . . . . Operator 9 | . 1 . 2 . . . 2 . . . . . . . 3 1 . . . . . . . Watcher 13 | . 2 . 3 . . . 3 1 . . . 1 . . . 1 1 . . . . 1 . Swarmer 58 | . 5 3 11 3 . . 6 . . . 4 3 4 3 . . 4 8 . . 4 . . Grunt 54 | . 4 1 10 . . . 16 6 3 . . 2 4 1 . 1 3 2 . 1 . . . Brawler 4 | . . . . . . . 1 2 . . . . . . . . . 1 . . . . . Duelist 4 | . . . 1 . . . 1 1 1 . . . . . . . . . . . . . . Protector 1 | . . . . . . . . 1 . . . . . . . . . . . . . . . Sentry 31 | . . . 8 . . . 10 . . . . 2 5 . 2 3 1 . . . . . . Programmer 13 | . . . . . . . . 3 . . . 2 . . . 1 5 . . . . 2 . Behemoth 1 | . . . . . . . . . . . . . 1 . . . . . . . . . . Cetus Guard 1 | . . . . . . . . . . . . . . 1 . . . . . . . . . Enhanced Grunt 1 | . . . . . . . . . . . . . . 1 . . . . . . . . . Decomposer 2 | . . . . . . . . . . . . . . . . . . 2 . . . . . Samaritan 2 | . . . . . . . . . . . . . . . . . . 2 . . . . . Thug 1 | . . . . . . . . . . . . . . 1 . . . . . . . . . Best Kill Streak 15 | 2 3 3 15 3 . . 5 5 4 . 4 4 4 5 2 5 4 4 . 1 4 2 . Combat Bots Only 5 | . 2 3 4 3 . . 5 4 4 . 4 4 3 5 1 3 4 4 . 1 4 2 . Max Kills in Single Turn 5 | 1 1 1 2 2 . . 2 4 1 . 3 2 1 2 1 5 1 2 . 1 1 1 . Gunslinging . | . . . . . . . . . . . . . . . . . . . . . . . . Exploded 3 | . . 1 2 2 . . . 2 . . 3 . 1 2 . . . . . . . . . Melee 1 | . . . . . . . . 1 . . . . . . . . . . . . . . . Uniques/NPCs Destroyed . | . . . . . . . . . . . . . . . . . . . . . . . . Combat | -11 -10 -10 -9 -9 -9 -8 -8 -7 -7 -7 -6 -6 -6 -6 -6 -6 -5 -5 -5 -5 -4 -4 -4 -------- Run | Scr Mat Min Mat Min Exi Min Mat Fac Low Dat Pro Fac Ext Cet Arc Hub Fac Upp Upp War Pro Fac Was Damage Taken 11358 | . 399 89 929 50 . 14 1650 1135 543 . 117 944 1543 413 367 886 967 633 52 23 292 184 128 Core 1008 | . 35 7 52 16 . . 135 89 86 . 34 111 114 . 102 138 59 . . . . 30 . Absorbed by Shields 381 | . . . . . . . . 144 . . . . 124 11 . . . 100 . 2 . . . Reduced by Siege Mode 148 | . . . . . . . . . . . . . . . . 24 30 21 . . 51 . 22 Core Remaining (%) 78 | 100 . 83 . . . 83 75 . . . 70 . . . . 45 . . . . 94 . . Volleys Fired 626 | 9 53 5 105 5 . 1 140 49 10 . 12 25 56 19 15 17 33 22 1 11 6 25 7 Largest 3 | 2 2 2 2 2 . 1 2 2 2 . 1 2 2 2 2 2 3 3 1 3 3 3 3 Hottest 208 | 80 75 83 89 89 . 33 117 113 113 . 65 145 155 180 180 143 186 119 98 208 208 208 208 Shots Fired 1222 | 18 103 7 207 10 . 1 279 85 20 . 12 50 109 36 30 32 80 54 1 15 18 38 17 Gun 720 | 18 50 4 204 8 . . 208 24 . . . 33 71 . 12 15 41 32 . . . . . Cannon 485 | . 53 . . . . . 71 61 20 . 10 17 34 34 18 17 39 22 1 15 18 38 17 Launcher 17 | . . 3 3 2 . 1 . . . . 2 . 4 2 . . . . . . . . . Special . | . . . . . . . . . . . . . . . . . . . . . . . . Kinetic 553 | . 80 2 102 3 . . 112 36 10 . . 16 26 . . 17 59 48 . 6 12 13 11 Thermal 611 | . . 2 102 5 . . 167 49 10 . 10 34 79 34 30 15 21 6 1 9 6 25 6 Explosive 17 | . . 3 3 2 . 1 . . . . 2 . 4 2 . . . . . . . . . Electromagnetic 41 | 18 23 . . . . . . . . . . . . . . . . . . . . . . Robot Hit Streak 23 | 6 9 8 19 3 . . 21 13 17 . 4 18 9 8 5 23 14 17 . 19 6 15 11 Robot Miss Streak 8 | 2 6 . 5 2 . . 5 4 1 . . 4 7 2 3 1 3 8 . 4 4 4 3 Penetration Max 1 | . . . . . . . . . 1 . . . . . . 1 . 1 . . . . . Secondary Targets 3 | . . . 1 . . . 2 . . . . . . . . . . . . . . . . Max Gunslinging Chain 1 | . . . 1 . . . 1 . . . . . . . . . . . . . . . . Shots Hit Robots 840 | 12 62 4 136 4 . . 179 65 17 . 2 44 93 24 20 28 68 32 . 5 7 21 17 Core Hits 481 | 2 28 5 63 3 . . 77 33 8 . 4 37 78 15 9 21 40 33 . 2 9 10 4 Critical Kills 7 | . . . . . . . . 1 . . . . . 1 . 1 4 . . . . . . Critical Parts Destroyed 4 | . . . . . . . 2 . . . . . . . . . 2 . . . . . . Critical Strikes 38 | . 1 . 10 . . . 7 1 1 . . . 6 1 . 1 6 1 . 2 . 1 . Burn 21 | . . . 10 . . . 5 . . . . . 6 . . . . . . . . . . Meltdown 2 | . . . . . . . . . . . . . . 1 . . 1 . . . . . . Destroy 9 | . . . . . . . 2 1 . . . . . . . 1 5 . . . . . . Blast 5 | . 1 . . . . . . . 1 . . . . . . . . . . 2 . 1 . Puncture 1 | . . . . . . . . . . . . . . . . . . 1 . . . . . Melee Attacks 110 | . . . 1 . . . 1 42 . . 3 20 . . 4 4 24 8 3 . . . . Impact . | . . . . . . . . . . . . . . . . . . . . . . . . Slashing 98 | . . . 1 . . . 1 42 . . 3 20 . . 4 4 23 . . . . . . Piercing 12 | . . . . . . . . . . . . . . . . . 1 8 3 . . . . Sneak Attacks 26 | . . . . . . . . 4 . . . 3 . . 4 1 9 5 . . . . . Combat Hostiles . | . . . . . . . . . . . . . . . . . . . . . . . . Follow-up Attacks . | . . . . . . . . . . . . . . . . . . . . . . . . Damage Inflicted 24661 | 135 883 259 2734 144 . . 3370 2556 479 . 307 1542 2704 1433 996 1258 2856 1305 . 117 191 776 616 Guns 9637 | 135 376 77 2399 61 . . 2322 225 . . . 692 1534 . 108 343 858 507 . . . . . Cannons 9181 | . 507 . . . . . 1048 1122 479 . . 354 892 953 405 491 988 242 . 117 191 776 616 Explosions 2546 | . . 182 335 83 . . . 547 . . 307 . 278 480 . 334 . . . . . . . Melee 3297 | . . . . . . . . 662 . . . 496 . . 483 90 1010 556 . . . . . Ramming . | . . . . . . . . . . . . . . . . . . . . . . . . Kinetic 8135 | . 612 52 1291 27 . . 949 438 208 . . 321 730 . . 397 1336 749 . 117 120 375 413 Thermal 10277 | . . 25 1108 34 . . 2421 909 271 . . 725 1696 953 513 437 510 . . . 71 401 203 Explosive 2184 | . . 182 307 83 . . . 547 . . 307 . 278 480 . . . . . . . . . Electromagnetic 768 | 135 271 . 28 . . . . . . . . . . . . 334 . . . . . . . Impact . | . . . . . . . . . . . . . . . . . . . . . . . . Slashing 2741 | . . . . . . . . 662 . . . 496 . . 483 90 1010 . . . . . . Piercing 556 | . . . . . . . . . . . . . . . . . . 556 . . . . . Highest Corruption 9 | . . . . . . . . 1 1 1 1 1 . . . 9 3 4 4 4 . . 4 Average Corruption 2 | . . . . . . . . 1 1 1 1 1 . . . 8 1 3 4 4 . . 4 Corruption Purged 7 | . . . . . . . . . . . . 1 . . . . 6 . . . . . . Effects 57 | . . . . . . . . 2 4 . 2 . . . . 1 7 18 17 5 . . 1 Message Errors 24 | . . . . . . . . 2 3 . . . . . . . 3 7 7 2 . . . Matter Fused 10 | . . . . . . . . . . . . . . . . . . 5 4 1 . . . Heat Flow Errors 9 | . . . . . . . . . . . . . . . . . 1 2 4 2 . . . Energy Discharges 7 | . . . . . . . . . . . 1 . . . . 1 1 3 1 . . . . Data Loss (minor) 6 | . . . . . . . . . 1 . 1 . . . . . 2 1 1 . . . . Weapon Failures 1 | . . . . . . . . . . . . . . . . . . . . . . . 1 Overload Shots . | . . . . . . . . . . . . . . . . . . . . . . . . Overflow Damage 819 | . 2 8 50 . . . . 130 27 . . 122 36 27 68 15 209 107 . . . 18 . Projectiles 111 | . 2 . . . . . . 25 27 . . . 8 27 . 1 3 . . . . 18 . Explosions 115 | . . 8 50 . . . . 15 . . . . 28 . . 14 . . . . . . . Melee 593 | . . . . . . . . 90 . . . 122 . . 68 . 206 107 . . . . . Knockbacks 59 | . 9 . . . . . . 5 3 . . 2 2 . . 2 17 9 . 2 5 3 . Impact . | . . . . . . . . . . . . . . . . . . . . . . . . Kinetic 56 | . 9 . . . . . . 4 3 . . 2 2 . . 2 17 8 . 2 4 3 . Secondary 3 | . . . . . . . . 1 . . . . . . . . . 1 . . 1 . . Self-Inflicted Damage 355 | . 38 . . 20 . . . 170 . . . . . 32 . 95 . . . . . . . Shots 7 | . 1 . . 1 . . . 2 . . . . . 2 . 1 . . . . . . . Rammed . | . . . . . . . . . . . . . . . . . . . . . . . . Targets Rammed . | . . . . . . . . . . . . . . . . . . . . . . . . Kicked . | . . . . . . . . . . . . . . . . . . . . . . . . Crushed . | . . . . . . . . . . . . . . . . . . . . . . . . Highest Temperature 349 | 90 30 1 81 . . . 178 114 45 . 40 342 214 321 285 222 274 269 263 252 192 349 259 Average Temperature 71 | 43 13 1 16 . . . 46 33 18 . 16 100 64 139 122 83 83 89 118 87 95 66 180 Received Heat Transfer 2877 | . 105 21 180 . . . 819 351 297 . . 231 400 63 33 177 123 60 . 17 . . . Effects 8 | . . . . . . . . . . . . 1 . 2 . . . . 2 . . 1 2 Energy Bleed 1 | . . . . . . . . . . . . . . . . . . . . . . 1 . Interference 6 | . . . . . . . . . . . . . . 2 . . . . 2 . . . 2 Short Circuit 1 | . . . . . . . . . . . . 1 . . . . . . . . . . . Siege Activations 15 | . . . . . . . . . . . . . . . . 3 6 3 . . 1 1 1 Total Turns 258 | . . . . . . . . . . . . . . . . 40 95 60 . . 22 20 21 Longest Duration 43 | . . . . . . . . . . . . . . . . 27 20 43 . . 22 20 21 Robots Corrupted . | . . . . . . . . . . . . . . . . . . . . . . . . Combat Hostiles . | . . . . . . . . . . . . . . . . . . . . . . . . Parts Fried 4 | 1 1 . . . . . . . . . . . . . . 2 . . . . . . . Impact Corruptions . | . . . . . . . . . . . . . . . . . . . . . . . . Robots Melted 5 | . . . . . . . 1 . . . . . . 2 . 1 1 . . . . . . Combat Hostiles 4 | . . . . . . . 1 . . . . . . 1 . 1 1 . . . . . . Parts Melted 30 | . . . 6 . . . 6 . 1 . . 1 8 4 2 . 2 . . . . . . Heat Transferred 19035 | . . 74 3441 74 . . 4921 1186 370 . . 1498 3829 1105 692 518 661 . . . 74 370 222 Parts Sabotaged . | . . . . . . . . . . . . . . . . . . . . . . . . Parts Stolen . | . . . . . . . . . . . . . . . . . . . . . . . . Parts Stripped . | . . . . . . . . . . . . . . . . . . . . . . . . Power Chain Reactions 1 | . 1 . . . . . . . . . . . . . . . . . . . . . . Missiles Intercepted . | . . . . . . . . . . . . . . . . . . . . . . . . Alert | -11 -10 -10 -9 -9 -9 -8 -8 -7 -7 -7 -6 -6 -6 -6 -6 -6 -5 -5 -5 -5 -4 -4 -4 ------- Run | Scr Mat Min Mat Min Exi Min Mat Fac Low Dat Pro Fac Ext Cet Arc Hub Fac Upp Upp War Pro Fac Was Peak Influence 1080 | 10 245 157 686 294 . 7 319 1080 . . . 512 290 552 353 703 580 . . . . 77 . Initial 344 | . 6 57 13 234 . . 2 111 . . . 65 87 . 140 123 344 . . . . . . Average 216 | 3 97 62 350 256 . . 183 446 . . . 172 109 243 307 425 207 . . . . 21 . Maximum Alert Level 3 | . 1 . 2 1 . . 1 3 . . . 2 1 2 1 3 2 . . . . . . Low Security (%) 58 | 100 85 100 13 . . 100 49 42 . . . 78 90 15 12 10 59 . . . . 100 100 Level 1 26 | . 14 . 54 100 . . 50 3 . . . 13 9 75 87 32 26 . . . . . . Level 2 10 | . . . 32 . . . . 23 . . . 7 . 9 . 55 13 . . . . . . Level 3 4 | . . . . . . . . 30 . . . . . . . 1 . . . . . . . Level 4 . | . . . . . . . . . . . . . . . . . . . . . . . . Level 5 . | . . . . . . . . . . . . . . . . . . . . . . . . High Security . | . . . . . . . . . . . . . . . . . . . . . . . . Max Security . | . . . . . . . . . . . . . . . . . . . . . . . . Squads Dispatched 37 | . 1 . 2 . . . 3 12 . . . 7 1 . . 7 3 . . . . 1 . Investigation 2 | . . . . . . . 1 1 . . . . . . . . . . . . . . . Extermination 7 | . . . . . . . . 1 . . . 1 . . . 1 3 . . . . 1 . Reinforcement 14 | . 1 . 2 . . . 2 3 . . . 1 1 . . 4 . . . . . . . Assault 5 | . . . . . . . . 4 . . . 1 . . . . . . . . . . . Garrison 9 | . . . . . . . . 3 . . . 4 . . . 2 . . . . . . . Intercept . | . . . . . . . . . . . . . . . . . . . . . . . . Construction Impeded 2 | . . . . . . . . . . . . . 1 . . 1 . . . . . . . Haulers Reinforced 2 | . . . . . . . . . . . . 1 . . . 1 . . . . . . . Cargo Convoy Interrupts 1 | . . . . . . . . 1 . . . . . . . . . . . . . . . Stealth | -11 -10 -10 -9 -9 -9 -8 -8 -7 -7 -7 -6 -6 -6 -6 -6 -6 -5 -5 -5 -5 -4 -4 -4 --------- Run | Scr Mat Min Mat Min Exi Min Mat Fac Low Dat Pro Fac Ext Cet Arc Hub Fac Upp Upp War Pro Fac Was Distress Signals 16 | . . . 1 . . . 5 2 . . . . 3 1 . 3 . . . 1 . . . Communications Jammed . | . . . . . . . . . . . . . . . . . . . . . . . . Distress Signals . | . . . . . . . . . . . . . . . . . . . . . . . . Times Spotted 363 | . 26 5 48 4 . 4 50 37 4 . 5 19 31 19 13 24 24 14 . 23 5 6 2 Peak Tracking Total 11 | . 4 3 6 4 . 7 5 8 4 . 5 4 7 10 2 7 5 4 . 11 5 2 2 Tactical Retreats 25 | . 7 1 3 . . . 5 1 . . 1 1 3 . . . 2 1 . . . . . Traps | -11 -10 -10 -9 -9 -9 -8 -8 -7 -7 -7 -6 -6 -6 -6 -6 -6 -5 -5 -5 -5 -4 -4 -4 ------- Run | Scr Mat Min Mat Min Exi Min Mat Fac Low Dat Pro Fac Ext Cet Arc Hub Fac Upp Upp War Pro Fac Was Traps Triggered 9 | . 1 . . . . . 1 . . . . . 4 . . . . 1 1 . . 1 . Indirectly . | . . . . . . . . . . . . . . . . . . . . . . . . Trap Hack Attempts . | . . . . . . . . . . . . . . . . . . . . . . . . Triggered . | . . . . . . . . . . . . . . . . . . . . . . . . Disarmed . | . . . . . . . . . . . . . . . . . . . . . . . . Reprogrammed . | . . . . . . . . . . . . . . . . . . . . . . . . Reused . | . . . . . . . . . . . . . . . . . . . . . . . . Traps Extracted . | . . . . . . . . . . . . . . . . . . . . . . . . Installed . | . . . . . . . . . . . . . . . . . . . . . . . . Triggered 16 | . . . . . . . . 2 . . 1 . . . . 1 . 1 1 10 . . . Machines | -11 -10 -10 -9 -9 -9 -8 -8 -7 -7 -7 -6 -6 -6 -6 -6 -6 -5 -5 -5 -5 -4 -4 -4 ---------- Run | Scr Mat Min Mat Min Exi Min Mat Fac Low Dat Pro Fac Ext Cet Arc Hub Fac Upp Upp War Pro Fac Was Machines Disabled 34 | . 2 . 5 . . . 3 4 . . . 2 3 . 2 11 2 . . . . . . Max in Single Turn 9 | . 1 . 2 . . . 1 2 . . . 1 1 . 1 9 1 . . . . . . Garrison Access 6 | . . . . . . . 1 2 . . . . . . . . 2 . . . . 1 . Network Hub 1 | . . . . . . . . . . . . . . . . 1 . . . . . . . Machines Sabotaged . | . . . . . . . . . . . . . . . . . . . . . . . . Garrisons Compromised 1 | . . . . . . . . 1 . . . . . . . . . . . . . . . Overloaded Fab Kills . | . . . . . . . . . . . . . . . . . . . . . . . . Fab Network Shutdowns 3 | . . . . . . . . 1 . . . 1 . . . . 1 . . . . . . Hacking | -11 -10 -10 -9 -9 -9 -8 -8 -7 -7 -7 -6 -6 -6 -6 -6 -6 -5 -5 -5 -5 -4 -4 -4 --------- Run | Scr Mat Min Mat Min Exi Min Mat Fac Low Dat Pro Fac Ext Cet Arc Hub Fac Upp Upp War Pro Fac Was Machines Accessed 80 | . 7 2 10 . 1 . 11 9 . 4 . 8 4 1 . 1 11 . 3 4 . 4 . Terminals 46 | . 6 2 7 . . . 8 5 . . . 5 3 1 . 1 6 . . . . 2 . Fabricators 6 | . . . . . . . . 1 . . . 2 . . . . 2 . . . . 1 . Repair Stations 3 | . . . 1 . . . 2 . . . . . . . . . . . . . . . . Recycling Units 5 | . 1 . 1 . . . . 1 . . . 1 1 . . . . . . . . . . Scanalyzers 3 | . . . 1 . . . . 1 . . . . . . . . 1 . . . . . . Garrison Access 5 | . . . . . . . 1 1 . . . . . . . . 2 . . . . 1 . Total Hacks 276 | . 21 6 30 . 1 . 32 25 . 27 . 29 14 1 . 3 41 . 12 10 . 24 . Successful 190 | . 12 3 21 . 1 . 19 12 . 27 . 15 8 1 . 1 31 . 12 10 . 17 . Failed 85 | . 8 3 9 . . . 13 13 . . . 14 6 . . 2 10 . . . . 7 . Catastrophic 11 | . 1 . 1 . . . 3 . . . . 4 1 . . 1 . . . . . . . Database Lockouts 1 | . 1 . . . . . . . . . . . . . . . . . . . . . . Manual 117 | . 13 6 13 . . . 23 11 . . . 17 5 2 . . 11 . . 1 . 15 . Terminals 162 | . 19 6 21 . . . 25 12 . . . 19 11 1 . 3 28 . . . . 17 . Fabricators 21 | . . . . . . . . 2 . . . 8 . . . . 6 . . . . 5 . Repair Stations 8 | . . . 3 . . . 5 . . . . . . . . . . . . . . . . Recycling Units 14 | . 2 . 2 . . . . 5 . . . 2 3 . . . . . . . . . . Scanalyzers 14 | . . . 4 . . . . 5 . . . . . . . . 5 . . . . . . Garrison Access 7 | . . . . . . . 2 1 . . . . . . . . 2 . . . . 2 . Terminal Hacks 109 | . 7 2 8 . 1 . 8 3 . 27 . 4 3 1 . 1 14 . 12 10 . 8 . Record 32 | . . . . . 1 . . . . 11 . . . . . . . . 10 10 . . . Part Schematic 11 | . 1 . . . . . . . . 7 . 1 . . . . 1 . . . . 1 . Robot Schematic 6 | . . . . . . . . . . 6 . . . . . . . . . . . . . Prototype ID Bank 14 | . 2 2 4 . . . 2 . . 3 . . . . . . 1 . . . . . . Open Door 3 | . . . . . . . . . . . . . . 1 . . . . 2 . . . . Branch Access Points 6 | . 1 . . . . . 1 1 . . . 1 . . . . 1 . . . . 1 . Machine Index 1 | . . . . . . . . . . . . . . . . . 1 . . . . . . Terminal Index 1 | . . . . . . . . . . . . . . . . . . . . . . 1 . Fabricator Index 1 | . . . . . . . . . . . . . . . . . . . . . . 1 . Repair Station Index 1 | . . . . . . . 1 . . . . . . . . . . . . . . . . Alert Level 4 | . 1 . 1 . . . 1 . . . . . . . . . . . . . . 1 . Unreport Threat 14 | . . . . . . . 3 2 . . . 2 3 . . 1 3 . . . . . . Locate Traps 11 | . 2 . 2 . . . . . . . . . . . . . 5 . . . . 2 . Hauler Manifests 2 | . . . 1 . . . . . . . . . . . . . . . . . . 1 . Zone Layout 2 | . . . . . . . . . . . . . . . . . 2 . . . . . . Fabricator Hacks 16 | . . . . . . . . 2 . . . 6 . . . . 5 . . . . 3 . Load Schematic 6 | . . . . . . . . 1 . . . 2 . . . . 2 . . . . 1 . Build 10 | . . . . . . . . 1 . . . 4 . . . . 3 . . . . 2 . Repair Station Hacks 5 | . . . 2 . . . 3 . . . . . . . . . . . . . . . . Scan Component 3 | . . . 1 . . . 2 . . . . . . . . . . . . . . . . Repair 2 | . . . 1 . . . 1 . . . . . . . . . . . . . . . . Recycling Unit Hacks 4 | . 1 . 1 . . . . . . . . 1 1 . . . . . . . . . . Retrieve Components 4 | . 1 . 1 . . . . . . . . 1 1 . . . . . . . . . . Scanalyzer 10 | . . . 4 . . . . 2 . . . . . . . . 4 . . . . . . Insert Component 5 | . . . 2 . . . . 1 . . . . . . . . 2 . . . . . . Analyze 5 | . . . 2 . . . . 1 . . . . . . . . 2 . . . . . . Garrison Access Hacks 5 | . . . . . . . 1 1 . . . . . . . . 2 . . . . 1 . Seal Access 5 | . . . . . . . 1 1 . . . . . . . . 2 . . . . 1 . Unauthorized Hacks 41 | . 4 1 6 . . . 7 4 . . . 4 4 . . . 6 . . . . 5 . Terminals 34 | . 3 1 5 . . . 7 3 . . . 2 3 . . . 6 . . . . 4 . Track 13 | . 1 1 3 . . . 2 1 . . . . . . . . 3 . . . . 2 . Assimilate 2 | . . . . . . . 1 1 . . . . . . . . . . . . . . . Botnet 18 | . 2 . 2 . . . 4 1 . . . 2 2 . . . 3 . . . . 2 . Disrupt 1 | . . . . . . . . . . . . . 1 . . . . . . . . . . Fabricators 3 | . . . . . . . . . . . . 2 . . . . . . . . . 1 . Siphon 3 | . . . . . . . . . . . . 2 . . . . . . . . . 1 . Repair Stations . | . . . . . . . . . . . . . . . . . . . . . . . . Recycling Units 4 | . 1 . 1 . . . . 1 . . . . 1 . . . . . . . . . . Mask 4 | . 1 . 1 . . . . 1 . . . . 1 . . . . . . . . . . Scanalyzers . | . . . . . . . . . . . . . . . . . . . . . . . . Garrison Access . | . . . . . . . . . . . . . . . . . . . . . . . . Data Cores Recovered . | . . . . . . . . . . . . . . . . . . . . . . . . Used . | . . . . . . . . . . . . . . . . . . . . . . . . Hacking Detections 57 | . 7 2 9 . . . 10 8 . . . 7 3 1 . 1 8 . . . . 1 . Full Trace Events 2 | . . . . . . . 1 1 . . . . . . . . . . . . . . . Feedback Events . | . . . . . . . . . . . . . . . . . . . . . . . . Feedback Blocked . | . . . . . . . . . . . . . . . . . . . . . . . . Robot Schematics Acquired 6 | . . . . . . . . . . 6 . . . . . . . . . . . . . Robots Built . | . . . . . . . . . . . . . . . . . . . . . . . . Matter . | . . . . . . . . . . . . . . . . . . . . . . . . Time . | . . . . . . . . . . . . . . . . . . . . . . . . Total Robot Build Rating . | . . . . . . . . . . . . . . . . . . . . . . . . Part Schematics Acquired 15 | . 1 . 2 . . . . 1 . 7 . 1 . . . . 2 . . . . 1 . Parts Built 8 | . . . . . . . . 1 . . . 4 . . . . 2 . . . . 1 . Matter 2358 | . . . . . . . . 384 . . . 782 . . . . 768 . . . . 424 . Time 856 | . . . . . . . . 204 . . . 342 . . . . 204 . . . . 106 . Total Part Build Rating 50 | . . . . . . . . 8 . . . 20 . . . . 16 . . . . 6 . Parts Repaired 2 | . . . 1 . . . 1 . . . . . . . . . . . . . . . . Time 168 | . . . 32 . . . 136 . . . . . . . . . . . . . . . . Parts Recycled . | . . . . . . . . . . . . . . . . . . . . . . . . Recycled Matter . | . . . . . . . . . . . . . . . . . . . . . . . . Retrieved Matter . | . . . . . . . . . . . . . . . . . . . . . . . . Retrieved Components 22 | . 8 . 1 . . . . . . . . 3 10 . . . . . . . . . . Parts Scanalyzed 5 | . . . 2 . . . . 1 . . . . . . . . 2 . . . . . . Part Schematics Acquired 4 | . . . 2 . . . . 1 . . . . . . . . 1 . . . . . . Parts Damaged . | . . . . . . . . . . . . . . . . . . . . . . . . Bothacking | -11 -10 -10 -9 -9 -9 -8 -8 -7 -7 -7 -6 -6 -6 -6 -6 -6 -5 -5 -5 -5 -4 -4 -4 ------------ Run | Scr Mat Min Mat Min Exi Min Mat Fac Low Dat Pro Fac Ext Cet Arc Hub Fac Upp Upp War Pro Fac Was Used RIF Installer . | . . . . . . . . . . . . . . . . . . . . . . . . Robots Hacked . | . . . . . . . . . . . . . . . . . . . . . . . . Non-combat . | . . . . . . . . . . . . . . . . . . . . . . . . Combat . | . . . . . . . . . . . . . . . . . . . . . . . . Robot Hacks Applied . | . . . . . . . . . . . . . . . . . . . . . . . . Relay Couplers Released 1 | . . . . . . . . 1 . . . . . . . . . . . . . . . Machine Destruction 1 | . . . . . . . . 1 . . . . . . . . . . . . . . . Robots Rewired 9 | . . . . . . . . . . . . . 7 . . . . . . 2 . . . Allies Hacked . | . . . . . . . . . . . . . . . . . . . . . . . . Hacks Repelled . | . . . . . . . . . . . . . . . . . . . . . . . . Allies | -11 -10 -10 -9 -9 -9 -8 -8 -7 -7 -7 -6 -6 -6 -6 -6 -6 -5 -5 -5 -5 -4 -4 -4 -------- Run | Scr Mat Min Mat Min Exi Min Mat Fac Low Dat Pro Fac Ext Cet Arc Hub Fac Upp Upp War Pro Fac Was Total Allies 34 | . . . . . . . 1 7 . . 1 . 18 5 . . . . . 2 . . . Largest Group 8 | . . . . . . . 1 8 . . 1 . 8 8 4 3 . . . 2 . . . Highest-Rated Group 650 | . . . . . . . 26 293 . . 95 . 356 650 380 276 . . . 87 . . . Highest-Rated Ally 156 | . . . . . . . 26 74 . . 95 . 156 156 95 95 . . . 46 . . . Total Orders 4 | . . . . . . . . 2 . . . . . . . . . . . 2 . . . STAY 2 | . . . . . . . . 1 . . . . . . . . . . . 1 . . . FOLLOW 2 | . . . . . . . . 1 . . . . . . . . . . . 1 . . . Ally Attacks 253 | . . . . . . . . 1 . . 2 . 90 81 36 31 . . . 12 . . . Total Damage 6400 | . . . . . . . . 271 . . 49 . 1710 1838 1299 997 . . . 236 . . . Kills 44 | . . . . . . . . 2 . . . . 15 14 2 10 . . . 1 . . . Allies Corrupted . | . . . . . . . . . . . . . . . . . . . . . . . . Allies Melted 2 | . . . . . . . . . . . 1 . . 1 . . . . . . . . . Intel | -11 -10 -10 -9 -9 -9 -8 -8 -7 -7 -7 -6 -6 -6 -6 -6 -6 -5 -5 -5 -5 -4 -4 -4 ------- Run | Scr Mat Min Mat Min Exi Min Mat Fac Low Dat Pro Fac Ext Cet Arc Hub Fac Upp Upp War Pro Fac Was Robot Analysis Total . | . . . . . . . . . . . . . . . . . . . . . . . . Derelict Logs Recovered 6 | . . 1 . . . . . . 1 . 1 . . . . . . 2 1 . . . . Drone Launches . | . . . . . . . . . . . . . . . . . . . . . . . . Drone Recoveries . | . . . . . . . . . . . . . . . . . . . . . . . . Exploration | -11 -10 -10 -9 -9 -9 -8 -8 -7 -7 -7 -6 -6 -6 -6 -6 -6 -5 -5 -5 -5 -4 -4 -4 ------------- Run | Scr Mat Min Mat Min Exi Min Mat Fac Low Dat Pro Fac Ext Cet Arc Hub Fac Upp Upp War Pro Fac Was Turns Passed 20053 | 57 1224 751 1667 235 304 119 2169 2041 362 101 290 1241 1674 406 203 359 1894 1151 853 1536 469 898 49 Spaces Moved 11278 | 25 690 592 872 151 220 65 1170 1340 251 77 201 802 838 148 77 143 929 590 514 826 270 472 15 Core . | . . . . . . . . . . . . . . . . . . . . . . . . Treads 4510 | . . . . . . . 17 . . . . 2 507 148 77 143 929 590 514 826 270 472 15 Legs 214 | 25 189 . . . . . . . . . . . . . . . . . . . . . . Wheels 6554 | . 501 592 872 151 220 65 1153 1340 251 77 201 800 331 . . . . . . . . . . Hover . | . . . . . . . . . . . . . . . . . . . . . . . . Flight . | . . . . . . . . . . . . . . . . . . . . . . . . Fastest Speed 110 | 120 110 120 120 135 135 150 120 115 130 130 115 115 130 160 160 160 160 160 160 160 160 160 160 Average Speed 140 | 120 141 120 132 135 137 150 122 121 130 130 120 116 148 161 160 160 163 160 160 160 160 160 160 Slowest Speed 260 | 120 200 120 135 135 150 150 260 130 130 130 130 260 260 260 160 160 166 160 160 160 160 160 160 Overloaded Moves . | . . . . . . . . . . . . . . . . . . . . . . . . Propulsion Burnouts . | . . . . . . . . . . . . . . . . . . . . . . . . Robots Hopped . | . . . . . . . . . . . . . . . . . . . . . . . . Cave-ins Triggered . | . . . . . . . . . . . . . . . . . . . . . . . . Exploration Rate (%) 51 | 3 96 93 88 31 60 19 90 43 29 69 42 20 81 57 72 20 31 68 78 83 45 12 11 Regions Visited 23 Branch Regions 15 Pre-discovered Areas 4 | . . . . . 1 . . . . 1 . . . . . . . . 2 . . . . Known Exits Taken 15 | . 1 . . . . . . 1 1 1 1 1 1 1 1 1 1 1 1 1 1 . . Unknown Exits Taken 7 | 1 . 1 1 1 1 1 1 . . . . . . . . . . . . . . . . Scrap Searched 9 | . . 1 . 1 . . . . . . . . . . . . . 1 3 . 3 . . Spaces Dug 138 | . . 6 1 11 . 9 1 30 . . 6 10 14 . . 3 17 9 4 3 . 14 . Terrain Destroyed 527 | . 6 15 35 17 . 9 1 84 2 . 15 12 50 41 1 161 22 15 4 8 11 18 . Melee 68 | . . . 1 . . . 1 30 . . 3 10 . . . 3 14 3 3 . . . . Projectile 79 | . . . 5 . . . . 4 2 . 3 2 1 2 1 1 8 12 1 8 11 18 . AOE 380 | . 6 15 29 17 . 9 . 50 . . 9 . 49 39 . 157 . . . . . . . Terrain Rammed . | . . . . . . . . . . . . . . . . . . . . . . . . Walls Destroyed . | . . . . . . . . . . . . . . . . . . . . . . . . Machines Disabled . | . . . . . . . . . . . . . . . . . . . . . . . . Actions | -11 -10 -10 -9 -9 -9 -8 -8 -7 -7 -7 -6 -6 -6 -6 -6 -6 -5 -5 -5 -5 -4 -4 -4 --------- Run | Scr Mat Min Mat Min Exi Min Mat Fac Low Dat Pro Fac Ext Cet Arc Hub Fac Upp Upp War Pro Fac Was Total 14171 | 34 844 626 1186 173 224 86 1645 1605 266 77 229 1021 1138 281 122 223 1192 734 538 1030 291 581 25 Wait 1367 | . 53 24 141 9 . 21 219 93 . . 2 100 130 88 6 31 111 93 18 154 9 65 . Move 11256 | 24 689 591 871 150 219 64 1169 1339 250 76 200 801 837 147 76 142 928 589 513 825 269 472 15 Hop . | . . . . . . . . . . . . . . . . . . . . . . . . Pick Up 134 | 1 18 1 14 3 1 . 21 12 1 . . 24 9 5 3 1 11 1 . 3 1 4 . Fast Attach 44 | . 5 . 4 . . . 7 1 . . . . 5 5 2 . 7 . . 6 . 2 . Attach 52 | . 3 . 4 . . . 7 6 3 . 1 6 5 3 . 1 9 . . 1 1 2 . Detach 19 | . 1 . . . . . 1 1 . . 2 1 1 2 . . 6 . . 3 . 1 . Swap 298 | . 6 3 23 3 2 . 35 42 2 1 9 27 24 2 9 26 45 20 3 3 5 6 2 Drop 190 | . 16 2 23 3 2 . 45 20 . . . 17 9 10 7 1 18 1 . 11 . 4 1 Fire 626 | 9 53 5 105 5 . 1 140 49 10 . 12 25 56 19 15 17 33 22 1 11 6 25 7 Melee 110 | . . . 1 . . . 1 42 . . 3 20 . . 4 4 24 8 3 . . . . Ram . | . . . . . . . . . . . . . . . . . . . . . . . . Kick . | . . . . . . . . . . . . . . . . . . . . . . . . Crush . | . . . . . . . . . . . . . . . . . . . . . . . . Escape Stasis 16 | . . . . . . . . . . . . . 16 . . . . . . . . . . Rewire 59 | . . . . . . . . . . . . . 46 . . . . . . 13 . . . Trap . | . . . . . . . . . . . . . . . . . . . . . . . . Miscellaneous . | . . . . . . . . . . . . . . . . . . . . . . . . Route ------- -11/Scrapyard -10/Materials (discovered 5 exits: *Mat x3 / *Min x2) -10/Mines (discovered 2 exits: *Mat x2) -9/Materials (discovered 5 exits: *Mat x3 / [*Min x2]) -9/Mines -9/Exiles -8/Mines -8/Materials (discovered 3 exits: *Fac x3) -7/Factory (discovered 3 exits: *Fac / *Low x2) -7/Lower Caves -7/Data Miner -6/Proximity Caves -6/Factory (discovered 5 exits: *Fac / *Low x2 / *Ext x2) -6/Extension (discovered 2 exits: *Fac / *Cet) -6/Cetus -6/Archives (discovered 2 exits: *Hub x2) -6/Hub_04(d) -5/Factory (discovered 2 exits: *Upp x2) -5/Upper Caves -5/Upper Caves (discovered 2 exits: Fac / *War) -5/Warlord -4/Proximity Caves -4/Factory (discovered 4 exits: *Res / *Upp x2 / Arm) -4/Waste (discovered 1 exit: Fac) History --------- Turn | Location | Event 1 | -11/Scrapyard | Discovered new exit (range 3) 58 | -11/Scrapyard | Entered Materials 307 | -10/Materials | Build established: Mutant 388 | -10/Materials | Discovered new exit (range 15) 666 | -10/Materials | Discovered new exit (range 4) 767 | -10/Materials | Discovered new exit (range 16) 779 | -10/Materials | Central database locked down 779 | -10/Materials | Identified exit to Mines 1083 | -10/Materials | Discovered new exit (range 12) 1198 | -10/Materials | Discovered new exit (range 13) 1282 | -10/Materials | Entered Mines 1291 | -10/Mines | Met a Derelict bent on vengeance 1372 | -10/Mines | Learned Materials stockpile data 1621 | -10/Mines | Discovered new exit (range 8) 1775 | -10/Mines | Discovered new exit (range 8) 1800 | -10/Mines | A weapon hastily lodged in a ceiling crevice suddenly fell to the ground 2033 | -10/Mines | Entered Materials 2033 | -9/Materials | Evolved 2 slots: Propulsion x1, Utility x1 2459 | -9/Materials | Discovered new exit (range 15) 2661 | -9/Materials | Discovered new exit (range 9) 2946 | -9/Materials | Discovered new exit (range 15) 3019 | -9/Materials | Repaired Med. Armor Plating 3483 | -9/Materials | Discovered new exit (range 15) 3693 | -9/Materials | Discovered new exit (range 6) 3700 | -9/Materials | Entered Mines 3770 | -9/Mines | Found a damaged Exp. Sensor Array with a note attached 3775 | -9/Mines | Found Prototype Device 3776 | -9/Mines | Identified Exp. Sensor Array 3787 | -9/Mines | Deemed a non-threat by the Exiles lab entrance 3788 | -9/Mines | Discovered new exit (range 5) 3824 | -9/Mines | Received a Rocket Launcher from a helpful Derelict 3935 | -9/Mines | Entered Exiles 3968 | -9/Exiles | Met 8R-AWN 3991 | -9/Exiles | Met EX-HEX 4077 | -9/Exiles | Met EX-BIN 4099 | -9/Exiles | Met EX-DEC 4104 | -9/Exiles | Learned location of Zion (-6) 4221 | -9/Exiles | Discovered new exit (range 14) 4239 | -9/Exiles | Entered Mines 4332 | -8/Mines | Discovered new exit (range 15) 4358 | -8/Mines | Entered Materials 4358 | -8/Materials | Evolved 2 slots: Propulsion x1, Utility x1 4775 | -8/Materials | Discovered new exit (range 5) 5244 | -8/Materials | Build established: Scavenger-Mutant 5700 | -8/Materials | Discovered new exit (range 16) 5883 | -8/Materials | Discovered new exit (range 9) 6474 | -8/Materials | Repaired Broken Exp. Sensor Array 6527 | -8/Materials | Entered Factory 6527 | -7/Factory | Accompanied by 1 ally 6527 | -7/Factory | Evolved 2 slots: Utility x2 7303 | -7/Factory | Build established: Assassin 7389 | -7/Factory | Cargo convoy interrupted 7680 | -7/Factory | Identified exit to Lower Caves 7947 | -7/Factory | Local fabrication network quarantined 8065 | -7/Factory | Discovered new exit (range 5) 8066 | -7/Factory | Fabricated Exp. Sensor Array? 8127 | -7/Factory | First assault squad dispatched 8203 | -7/Factory | Garrison activated, responded to threat 8568 | -7/Factory | Entered Lower Caves 8611 | -7/Lower Caves | Lost 5 parts (1p2n2u) 8648 | -7/Lower Caves | A Derelict revealed a hidden shortcut to meet someone special 8776 | -7/Lower Caves | Build established: Skirmisher 8929 | -7/Lower Caves | Identified exit to Data Miner 8930 | -7/Lower Caves | Entered Data Miner 8930 | -7/Data Miner | Discovered new exit (range 6) 8937 | -7/Data Miner | Identified exit to Proximity Caves 8955 | -7/Data Miner | Met Data Miner 8977 | -7/Data Miner | Learned location of Section 7 (-2) 8977 | -7/Data Miner | Acquired the access code to Warlord's prototype stash 9001 | -7/Data Miner | Received God Mode back door access code from Data Miner 9031 | -7/Data Miner | Entered Proximity Caves 9161 | -6/Proximity Caves | Spotted B-75 Beast 9164 | -6/Proximity Caves | Escorted by Enhanced Grunt 9170 | -6/Proximity Caves | Learned 4 Factory zone layouts 9302 | -6/Proximity Caves | Discovered new exit (range 13) 9320 | -6/Proximity Caves | Identified exit to Factory 9321 | -6/Proximity Caves | Entered Factory 9321 | -6/Factory | Evolved 2 slots: Utility x2 9322 | -6/Factory | Identified exit to Extension 9323 | -6/Factory | Identified exit to Lower Caves 9521 | -6/Factory | Fabricated Imp. Hacking Suite? 9571 | -6/Factory | Fabricated Lgt. Regenerative Plating? 9622 | -6/Factory | Local fabrication network quarantined 9634 | -6/Factory | Fabricated Imp. Hacking Suite (x1) 9665 | -6/Factory | Fabricated Lgt. Regenerative Plating (x1) 9671 | -6/Factory | First assault squad dispatched 9690 | -6/Factory | Incoming assault squad redirected 9880 | -6/Factory | Build established: Hacker-Assassin 9918 | -6/Factory | Garrison activated, responded to threat 10332 | -6/Factory | Discovered new exit (range 9) 10511 | -6/Factory | Garrison activated, responded to threat 10562 | -6/Factory | Entered Extension 10687 | -6/Extension | Disrupted transfer network 11131 | -6/Extension | Rescued a captive Derelict 11135 | -6/Extension | Build established: Hacker-Mutant 11254 | -6/Extension | Rescued a captive Derelict 11254 | -6/Extension | Rescued a captive Derelict 11618 | -6/Extension | Spotted B-75 Beast 11644 | -6/Extension | Allies destroyed B-75 Beast 11645 | -6/Extension | Spotted B-75 Beast 11660 | -6/Extension | Destroyed B-75 Beast 11770 | -6/Extension | Rescued A7 12002 | -6/Extension | Rescued a captive Derelict 12014 | -6/Extension | Rescued a captive Derelict 12065 | -6/Extension | Rescued a captive Derelict 12093 | -6/Extension | Rescued a captive Derelict 12094 | -6/Extension | Rescued a captive Derelict 12164 | -6/Extension | Rescued a captive Derelict 12165 | -6/Extension | Rescued a captive Derelict 12193 | -6/Extension | Discovered new exit (range 10) 12195 | -6/Extension | Discovered new exit (range 6) 12214 | -6/Extension | Identified exit to Factory 12224 | -6/Extension | Identified exit to Cetus 12236 | -6/Extension | Entered Cetus 12236 | -6/Cetus | Accompanied by 8 allies (A7) 12241 | -6/Cetus | Acquired a Cetus Manufacturing Module code from A7 12258 | -6/Cetus | Spotted Cetus Guard 12258 | -6/Cetus | Spotted Cetus Guard 12261 | -6/Cetus | Spotted Cetus Guard 12262 | -6/Cetus | Allies destroyed Cetus Guard 12262 | -6/Cetus | Spotted Cetus Guard 12272 | -6/Cetus | Destroyed Cetus Guard 12284 | -6/Cetus | Allies destroyed Cetus Guard 12291 | -6/Cetus | Allies destroyed Cetus Guard 12403 | -6/Cetus | Started Cetus Manufacturing Module 12413 | -6/Cetus | Escorted A7 to Cetus Mainframe 12428 | -6/Cetus | Manufactured an Enhanced Grunt 12430 | -6/Cetus | Discovered new exit (range 16) 12452 | -6/Cetus | Identified exit to Archives 12453 | -6/Cetus | Manufactured an Enhanced Grunt 12478 | -6/Cetus | Manufactured an Enhanced Grunt 12503 | -6/Cetus | Manufactured an Enhanced Grunt 12528 | -6/Cetus | Manufactured an Enhanced Grunt 12593 | -6/Cetus | Extracted ID and sensor layout for unrecognized location from A7's data core 12609 | -6/Cetus | Found Prototype Protection 12609 | -6/Cetus | Identified Med. Regenerative Plating 12642 | -6/Cetus | Entered Archives 12642 | -6/Archives | Accompanied by 4 allies 12653 | -6/Archives | Build established: Scavenger-Mutant 12753 | -6/Archives | Discovered new exit (range 15) 12795 | -6/Archives | Discovered new exit (range 16) 12836 | -6/Archives | Identified exit to Hub_04(d) 12845 | -6/Archives | Entered Hub_04(d) 12845 | -6/Hub_04(d) | Accompanied by 3 allies 12992 | -6/Hub_04(d) | Discovered exit to Factory (range 11) 13018 | -6/Hub_04(d) | Garrison activated, responded to threat 13166 | -6/Hub_04(d) | Network Hub disabled 13167 | -6/Hub_04(d) | Core integrity fell below 50% 13203 | -6/Hub_04(d) | Spotted Lightning 13204 | -6/Hub_04(d) | Entered Factory 13204 | -5/Factory | Evolved 2 slots: Utility x1, Weapon x1 13256 | -5/Factory | Identified exit to Upper Caves 14767 | -5/Factory | Fabricated Centrium Heavy Treads? 14830 | -5/Factory | Fabricated Centrium Heavy Treads? 14888 | -5/Factory | Local fabrication network quarantined 15098 | -5/Factory | Entered Upper Caves 15111 | -5/Upper Caves | Learned 12 Factory zone layouts 15288 | -5/Upper Caves | Build established: Hacker-Assassin 15750 | -5/Upper Caves | Learned Factory garrison access intel 16022 | -5/Upper Caves | Build established: Hacker-Skirmisher 16141 | -5/Upper Caves | Discovered new exit (range 11) 16160 | -5/Upper Caves | Identified exit to Upper Caves 16249 | -5/Upper Caves | Entered another Upper Caves area 16436 | -5/Upper Caves | Identified exit to Factory 16436 | -5/Upper Caves | Learned Extension trap positions 16436 | -5/Upper Caves | Learned Factory emergency access door positions 16436 | -5/Upper Caves | Learned Armory security intel 16436 | -5/Upper Caves | Learned Armory terminal intel 16713 | -5/Upper Caves | Identified exit to Warlord 16775 | -5/Upper Caves | Encountered a Warlord checkpoint 17102 | -5/Upper Caves | Entered Warlord 17171 | -5/Warlord | Discovered new exit (range 15) 17232 | -5/Warlord | System corruption cleaned by Quarantine Array 17234 | -5/Warlord | Build established: Hacker-Mutant 18079 | -5/Warlord | Warlord's base attacked by MAIN.C 18093 | -5/Warlord | Met Warlord 18109 | -5/Warlord | Opened Warlord's prototype stash 18115 | -5/Warlord | Found Prototype Device 18115 | -5/Warlord | Identified Thermal Barrier 18135 | -5/Warlord | Found Prototype Reactor 18429 | -5/Warlord | Warlord forces counterattacked 18518 | -5/Warlord | Spotted Executioner 18532 | -5/Warlord | Spotted Striker 18541 | -5/Warlord | Allies destroyed Striker 18603 | -5/Warlord | Spotted Striker 18604 | -5/Warlord | Spotted Executioner 18636 | -5/Warlord | Identified exit to Proximity Caves 18638 | -5/Warlord | Entered Proximity Caves 19107 | -4/Proximity Caves | Entered Factory 19107 | -4/Factory | Evolved 2 slots: Power x1, Utility x1 19109 | -4/Factory | Identified Vortex Chain Reactor 19110 | -4/Factory | Loaded intel: 4 garrison access locations 19130 | -4/Factory | Build established: Hacker-Skirmisher 19526 | -4/Factory | Discovered new exit (range 10) 19539 | -4/Factory | Identified exit to Research 19700 | -4/Factory | Identified exit to Upper Caves 19700 | -4/Factory | Identified exit to Armory 19759 | -4/Factory | Build established: Hacker-Mutant 19957 | -4/Factory | Fabricated Adv. Hacking Suite? 20005 | -4/Factory | Sucked down chute 20005 | -4/Factory | Entered Waste 20006 | -4/Waste | Identified exit to Factory 20020 | -4/Waste | EMP discharged 20051 | -4/Waste | Crushed by Compactor (1 part destroyed, 1 dropped) 20052 | -4/Waste | Crushed by Compactor (0 parts destroyed, 2 dropped) 20054 | -4/Waste | Crushed by Compactor (0 parts destroyed, 1 dropped) 20054 | -4/Waste | Self-destructed Last Messages --------------- 20034_ Extracted 7 matter. 20034_ Activated siege mode. 20036_ Extracted 14 matter. 20038_ Slug penetrates C-40 Crusher. 20039_ Extracted 14 matter. 20042_ 6 Matter crushed. 20046_ Extracted 14 matter. 20048_ System corrupted: Enh. Gauss Cannon jammed. 20049_ Extracted 7 matter. 20051_ Med. Regenerative Plating crushed. 20051_ Hvy. Flak Cannon crushed. 20051_ Slug penetrates C-40 Crusher. 20052_ Extracted 7 matter. 20052_ Centrium Medium Armor Plating crushed. 20052_ Lgt. Regenerative Plating crushed. 20053_ Overheating: System interference. 20053_ Hvy. Phase Cannon temporarily disabled. 20053_ Lgt. Regenerative Plating temporarily disabled. 20054_ 1 Matter crushed. 20054_ Lgt. Regenerative Plating crushed. Map ----- +----------------------------------------------------+ | ?????????????????????????????????????????? | | ?????????????????????????????????????????? | | ?????????????????????????????????????????? | | ?????????????????????????????????????????? | | ?????????????????????????????????????????? | | ?????????????????????????????????????????? | | ?????????????????????????????????????????? | | ?????????????????????????????????????????? | | ?????????????????????????????????????????? | | ?????????????????????????????????????????? | | ?????????????????????????????????????????? | | ?????????????????????????????????????????? | | ?????????????????????????????????????????? | | ?????????????????????????????????????????? | | ?????????????????????????????????????????? | | ?????????????????????????????????????????? | | ?????????????????????????????????????????? | | ????????????????????????????????#????????? | | ?????????????############?????? #????????? | | ?????????????# #????? #????????? | | ?????????????# #???? #????????? | | ?????????????# %#### ######???? | | ?????????????# ???? | | ?????????????# % ??? | | ?????????????# !CC % ??? | | ?????????????# ]@CC ??? | | ?????????????# !CC #### ##???????? | | ?????????????# CC #???????#????????? | | ?????????????# #????????????????? | | ?????????????############????????????????? | | ?????????????????????????????????????????? | | ?????????????????????????????????????????? | | ?????????????????????????????????????????? | | ?????????????????????????????????????????? | | ?????????????????????????????????????????? | | ?????????????????????????????????????????? | | ?????????????????????????????????????????? | | ?????????????????????????????????????????? | | ?????????????????????????????????????????? | | ?????????????????????????????????????????? | | ?????????????????????????????????????????? | | ?????????????????????????????????????????? | | ?????????????????????????????????????????? | | ?????????????????????????????????????????? | | ?????????????????????????????????????????? | | ?????????????????????????????????????????? | | ?????????????????????????????????????????? | | ?????????????????????????????????????????? | | ?????????????????????????????????????????? | | ?????????????????????????????????????????? | +----------------------------------------------------+ Best States ------------- Heat Dissipation 74 Energy Generation 55 Energy Capacity 700 Matter Stores 500 Matter Capacity 500 Sight Range 16 Robot Scan Range 20 Terrain Scan Density 10 Armor Coverage 1500 Resistance: KI 20 Resistance: TH 10 Resistance: EM 25 Power Shielding 33 Propulsion Shielding 33 Evasion (%) 55 Recoil Reduction 4 Offensive Hacking 36 Defensive Hacking 12 Item Schematics ----------------- Hcp. Storage Unit | -10/Materials | Hacked Signal Interpreter | -9/Materials | Scanalyzed Sensor Array | -9/Materials | Scanalyzed Exp. Sensor Array | -7/Factory | Scanalyzed Combat Drone Bay | -7/Data Miner | Free Lgt. Regenerative Plating | -7/Data Miner | Free Cmb. Gravmag System | -7/Data Miner | Free Exp. Terrain Scanner | -7/Data Miner | Free Tactical Coordination Suite | -7/Data Miner | Free Exp. ECM Suite | -7/Data Miner | Free Kinetic Spear | -7/Data Miner | Free Imp. Hacking Suite | -6/Factory | Hacked Hyp. Coil Gun | -5/Factory | Hacked Centrium Heavy Treads | -5/Factory | Scanalyzed Adv. Hacking Suite | -4/Factory | Hacked Robot Schematics ------------------ S-27 Virus | -7/Data Miner | Free G-50 Soldier | -7/Data Miner | Free G-67 Veteran | -7/Data Miner | Free L-41 Fighter | -7/Data Miner | Free X-72 Disruptor | -7/Data Miner | Free I-36 Angel | -7/Data Miner | Free Fabricated ------------ Exp. Sensor Array | x1 | -7/Factory Imp. Hacking Suite | x1 | -6/Factory Lgt. Regenerative Plating | x1 | -6/Factory Imp. Hacking Suite | x1 | -6/Factory Lgt. Regenerative Plating | x1 | -6/Factory Centrium Heavy Treads | x1 | -5/Factory Centrium Heavy Treads | x1 | -5/Factory Adv. Hacking Suite | x1 | -4/Factory Alien Tech Used ----------------- None Achievements -------------- None Challenges ------------ None Game ------ Seed MetafiberFortressBoregun Manual? 1 Play Time 07:58:57 Cumulative 1125.6 hours Start 2021.07.08 @ 06:55:33 End 2021.07.17 @ 12:45:26 Sessions 51 Manual Loads 0 Difficulty Rogue Special Mode None Game No. 312 Rogue 312 Adventurer 0 Explorer 0 Win Type - Total 39 Types 25/6/5/3/0/0/0/0/0 Lore% 81 Gallery% 86 Achievement% 73 Wizard Run 0 Options --------- ASCII 0 Keyboard 1 Movement Numpad Keybinds 0 Fullscreen 1 Font 24/Smallcaps Map View 76x50 Tactical HUD 1 Map Filters NONE Filters NONE Steam 1 RUN: 337121b0-6440-469b-8852-deafc74e5aa0